fUST/lending_fUST_20260602
["ID","MTS","AMOUNT","RATE_DAILY","PERIOD"]
[423747175,1780377048000,-500.0,0.00013698,2]
[423747178,1780377048000,-500.0,0.00013698,2]
[423747177,1780377048000,-500.0,0.00013698,2]
[423747179,1780377048000,-500.0,0.00013698,2]
[423747170,1780377048000,-507.03230998,0.00013698,2]
[423747183,1780377048000,-501.86547126,0.00013698,2]
[423747180,1780377048000,-502.75359709,0.00013698,2]
[423747185,1780377048000,-501.03369868,0.00013698,2]
[423747186,1780377048000,-500.0,0.00013698,2]
[423747182,1780377048000,-504.70569049,0.00013698,2]
[423747184,1780377048000,-500.96155584,0.00013698,2]
[423747188,1780377048000,-502.44873523,0.00013698,2]
[423747181,1780377048000,-502.39653695,0.00013698,2]
[423747190,1780377048000,-143.79611356,0.00013698,2]
[423747210,1780377150000,792.07590149,0.00022807,30]
[423747211,1780377151000,239.55291803,0.00022603,120]
[423747212,1780377188000,500.0,0.000226,120]
[423747213,1780377204000,165963.0,0.00013596,120]
[423747214,1780377204000,500.0,0.000226,120]
[423747295,1780378232000,-697.03980434,8.967e-05,2]
[423747294,1780378232000,-465.47474215,8.967e-05,2]
[423747292,1780378232000,-433.47286256,8.967e-05,2]
[423747293,1780378232000,-608.75095851,8.967e-05,2]
[423747286,1780378232000,-3249.93263484,8.877e-05,2]
[423747288,1780378232000,-315.88607191,8.967e-05,2]
[423747330,1780378242000,-172.107495,0.00010871,2]
[423747328,1780378242000,-538.82324345,0.00010514,7]
[423747329,1780378242000,-538.82324345,0.00010814,7]
[423747327,1780378242000,-538.82324345,0.00010213,7]
[423747325,1780378242000,-300.0,0.00010012,2]
[423747323,1780378242000,-163.6725,9.912e-05,2]
[423747332,1780378242000,-166.89,0.00011155,2]
[423747324,1780378242000,-300.0,0.00010012,2]
[423747322,1780378242000,-1200.0,9.057e-05,2]
[423747321,1780378242000,-2479.37556053,8.967e-05,2]
[423747326,1780378242000,-538.82324345,0.00010013,7]
[423747331,1780378242000,-3835.0,0.00011,2]
[423747342,1780378242000,-3168.86616958,0.00012,4]
[423747334,1780378242000,-241.73820461,0.000119,2]
[423747335,1780378242000,-500.0,0.00011999,2]
[423747346,1780378242000,-18227.38628157,0.00012,2]
[423747345,1780378242000,-10665.35542765,0.00012,4]
[423747344,1780378242000,-811.51114452,0.00012,4]
[423747339,1780378242000,-378.59212168,0.00011999,2]
[423747343,1780378242000,-4434.43114876,0.00012,4]
[423747341,1780378242000,-6474.90535628,0.00012,4]
[423747338,1780378242000,-500.0,0.00011999,2]
[423747336,1780378242000,-500.0,0.00011999,2]
[423747337,1780378242000,-500.0,0.00011999,2]
[423747333,1780378242000,-538.82324345,0.00011215,7]
[423747340,1780378242000,-302.6148542,0.00011999,2]
[423747357,1780378244000,-1068.60977253,0.00012,2]
[423747354,1780378244000,-13968.27331962,0.00012,2]
[423747356,1780378244000,-3428.19821707,0.00012,2]
[423747355,1780378244000,-11254.0,0.00012,2]
[423747359,1780378244000,-3011.0,0.00012,2]
[423747358,1780378244000,-12905.67649016,0.00012,2]
[423747360,1780378244000,-11811.51393796,0.000125,2]
[423747362,1780378244000,-760.86230765,0.000125,2]
[423747365,1780378244000,-1164.14458316,0.000125,2]
[423747363,1780378244000,-2292.89147835,0.000125,2]
[423747364,1780378244000,-3215.89712044,0.000125,2]
[423747361,1780378244000,-272.99678349,0.000125,2]
[423747373,1780378246000,-161.16324927,0.000125,2]
[423747374,1780378246000,-8149.01929793,0.00013,2]
[423747372,1780378246000,-10406.87686471,0.000125,2]
[423747376,1780378246000,-10695.5512453,0.00013,2]
[423747377,1780378246000,-3775.0,0.00013,2]
[423747375,1780378246000,-30252.59273744,0.00013,2]
[423747380,1780378329000,-1415.0,0.00012765,2]
[423747385,1780378843000,22238.0,0.00022601,120]
[423747459,1780379439000,-300.0,0.00012166,2]
[423747472,1780379439000,-187.604,0.00012765,2]
[423747470,1780379439000,-3630.0,0.00012765,2]
[423747471,1780379439000,-2206.0,0.00012765,2]
[423747461,1780379439000,-1200.0,0.00012167,2]
[423747465,1780379439000,-231.6461839,0.00012547,2]
[423747458,1780379439000,-300.0,0.00012166,2]
[423747456,1780379439000,-3397.99788331,0.00011342,2]
[423747457,1780379439000,-478.99683408,0.00011457,2]
[423747455,1780379439000,-1602.00211669,0.00011342,2]
[423747454,1780379439000,-152.0,0.00011309,7]
[423747460,1780379439000,-1200.0,0.00012166,2]
[423747462,1780379439000,-2576.8579938,0.00012169,2]
[423747463,1780379439000,-9732.5259067,0.00012169,2]
[423747468,1780379439000,-1415.0,0.00012765,2]
[423747481,1780379439000,-272.1750197,0.000128,2]
[423747482,1780379439000,-31340.21351801,0.000128,2]
[423747480,1780379439000,-44102.93625748,0.000128,2]
[423747479,1780379439000,-2923.86707462,0.000128,2]
[423747476,1780379439000,-150.0,0.00012765,2]
[423747464,1780379439000,-154.68781384,0.00012422,7]
[423747478,1780379439000,-12387.23668966,0.000128,2]
[423747474,1780379439000,-150.0,0.00012765,2]
[423747477,1780379439000,-465.78824728,0.00012799,2]
[423747473,1780379439000,-185.341,0.00012765,2]
[423747466,1780379439000,-264.28801352,0.00012663,2]
[423747469,1780379439000,-1836.0,0.00012765,2]
[423747467,1780379439000,-172.107495,0.00012707,2]
[423747475,1780379439000,-150.0,0.00012765,2]
[423747491,1780379441000,-4017.52177311,0.000128,2]
[423747490,1780379441000,-7025.17689738,0.000128,2]
[423747530,1780379444000,-398.77670356,0.000128,2]
[423747531,1780379444000,-10260.76468092,0.000128,2]
[423747534,1780379444000,-16317.40853271,0.000128,2]
[423747533,1780379444000,-6963.11413763,0.000128,2]
[423747532,1780379444000,-4574.14783359,0.000128,2]
[423747545,1780379447000,-17138.66813076,0.000128,2]
[423747550,1780379564000,152.0,0.0002,120]
[423747551,1780379565000,152.0,0.000209,120]
[423747552,1780379566000,152.0,0.000219,120]
[423747557,1780380110000,-151.0,0.00011345,2]
[423747561,1780380583000,-240.82074905,0.00022859,120]
[423747560,1780380583000,-20000.0,0.00022859,120]
[423747590,1780380632000,-100.58028393,0.0001257,2]
[423747585,1780380632000,-160.0,0.00011425,2]
[423747586,1780380632000,-300.0,0.00012569,2]
[423747581,1780380632000,-1200.0,0.00010386,2]
[423747589,1780380632000,-444.0,0.0001257,2]
[423747580,1780380632000,-5000.0,0.00010283,2]
[423747583,1780380632000,-195.8192039,0.00011144,2]
[423747579,1780380632000,-676.343852,0.0001018,2]
[423747582,1780380632000,-5000.0,0.00010387,2]
[423747587,1780380632000,-300.0,0.00012569,2]
[423747584,1780380632000,-1257.05574192,0.00011345,8]
[423747592,1780380632000,-84.42071607,0.0001257,2]
[423747588,1780380632000,-300.0,0.00012569,2]
[423747601,1780380632000,-463.0610235,0.000126,2]
[423747599,1780380632000,-182.72812987,0.00012599,2]
[423747600,1780380632000,-11884.90799994,0.000126,2]
[423747598,1780380632000,-317.27187013,0.00012599,2]
[423747597,1780380632000,-500.0,0.00012599,2]
[423747595,1780380632000,-500.0,0.00012599,2]
[423747594,1780380632000,-88.65034801,0.00012599,2]
[423747596,1780380632000,-500.0,0.00012599,2]
[423747593,1780380632000,-428.58169459,0.00012599,2]
[423747643,1780380638000,-300.0,0.00013019,2]
[423747634,1780380638000,-300.0,0.00013019,2]
[423747636,1780380638000,-300.0,0.00013019,2]
[423747633,1780380638000,-300.0,0.00013019,2]
[423747639,1780380638000,-300.0,0.00013019,2]
[423747638,1780380638000,-300.0,0.00013019,2]
[423747635,1780380638000,-300.0,0.00013019,2]
[423747645,1780380638000,-300.0,0.00013019,2]
[423747652,1780380638000,-151.5,0.00013424,2]
[423747644,1780380638000,-300.0,0.00013019,2]
[423747647,1780380638000,-1460.191289,0.00013424,2]
[423747650,1780380638000,-151.5,0.00013424,2]
[423747641,1780380638000,-300.0,0.00013019,2]
[423747653,1780380638000,-225.86475622,0.00013424,2]
[423747648,1780380638000,-151.5,0.00013424,2]
[423747651,1780380638000,-151.5,0.00013424,2]
[423747655,1780380638000,-151.0,0.000136,2]
[423747646,1780380638000,-151.0,0.000131,2]
[423747642,1780380638000,-300.0,0.00013019,2]
[423747631,1780380638000,-300.0,0.00013019,2]
[423747632,1780380638000,-300.0,0.00013019,2]
[423747654,1780380638000,-168.0,0.000135,3]
[423747616,1780380638000,-5000.0,0.00012474,2]
[423747618,1780380638000,-44127.34843233,0.000126,2]
[423747628,1780380638000,-189.63181326,0.00012788,2]
[423747617,1780380638000,-14351.41192111,0.000126,2]
[423747622,1780380638000,-156.163809,0.000127,2]
[423747619,1780380638000,-11750.35151381,0.000126,2]
[423747620,1780380638000,-91172.33461552,0.000126,2]
[423747621,1780380638000,-182.768,0.00012699,2]
[423747626,1780380638000,-2206.0,0.00012765,2]
[423747627,1780380638000,-172.39818397,0.00012788,2]
[423747624,1780380638000,-3630.0,0.00012765,2]
[423747623,1780380638000,-1415.0,0.00012765,2]
[423747625,1780380638000,-1836.0,0.00012765,2]
[423747629,1780380638000,-47862.10004363,0.00013,2]
[423747640,1780380638000,-300.0,0.00013019,2]
[423747637,1780380638000,-300.0,0.00013019,2]
[423747630,1780380638000,-505.84559567,0.00013019,2]
[423747657,1780380638000,-500.0,0.00013698,2]
[423747649,1780380638000,-151.5,0.00013424,2]
[423747666,1780380638000,-510.76099939,0.00013698,2]
[423747675,1780380638000,-403.98613581,0.00013698,2]
[423747678,1780380638000,-500.0,0.00013698,2]
[423747684,1780380638000,-500.0,0.00013698,2]
[423747686,1780380638000,-502.30215624,0.00013698,2]
[423747685,1780380638000,-500.47629903,0.00013698,2]
[423747683,1780380638000,-500.0,0.00013698,2]
[423747688,1780380638000,-500.0,0.00013698,2]
[423747687,1780380638000,-441.83103163,0.00013698,2]
[423747679,1780380638000,-500.0,0.00013698,2]
[423747689,1780380638000,-502.37182339,0.00013698,2]
[423747691,1780380638000,-500.0,0.00013698,2]
[423747690,1780380638000,-638.10350546,0.00013698,2]
[423747695,1780380638000,-501.8734997,0.00013698,2]
[423747696,1780380638000,-504.53715497,0.00013698,2]
[423747694,1780380638000,-500.0,0.00013698,2]
[423747697,1780380638000,-502.72556271,0.00013698,2]
[423747668,1780380638000,-505.11198172,0.00013698,2]
[423747698,1780380638000,-500.0,0.00013698,2]
[423747692,1780380638000,-255.78631826,0.00013698,2]
[423747673,1780380638000,-3065.16,0.00013698,2]
[423747693,1780380638000,-500.0,0.00013698,2]
[423747677,1780380638000,-643.02751401,0.00013698,2]
[423747656,1780380638000,-585.27130569,0.00013698,2]
[423747682,1780380638000,-500.0,0.00013698,2]
[423747665,1780380638000,-506.37191174,0.00013698,2]
[423747667,1780380638000,-500.0,0.00013698,2]
[423747658,1780380638000,-593.23048277,0.00013698,2]
[423747664,1780380638000,-151.19162822,0.00013698,2]
[423747661,1780380638000,-500.0,0.00013698,2]
[423747662,1780380638000,-502.70973669,0.00013698,2]
[423747660,1780380638000,-502.58668606,0.00013698,2]
[423747659,1780380638000,-1058.4752,0.00013698,2]
[423747670,1780380638000,-500.0,0.00013698,2]
[423747669,1780380638000,-500.0,0.00013698,2]
[423747680,1780380638000,-517.9108746,0.00013698,2]
[423747676,1780380638000,-202.26775018,0.00013698,2]
[423747671,1780380638000,-500.0,0.00013698,2]
[423747681,1780380638000,-500.0,0.00013698,2]
[423747663,1780380638000,-2935.52,0.00013698,2]
[423747672,1780380638000,-500.0,0.00013698,2]
[423747674,1780380638000,-473.62086382,0.00013698,2]
[423747743,1780380639000,-500.0,0.00013698,2]
[423747741,1780380639000,-237.55392632,0.00013698,2]
[423747742,1780380639000,-500.0,0.00013698,2]
[423747739,1780380639000,-620.01901469,0.00013698,2]
[423747734,1780380639000,-500.0,0.00013698,2]
[423747735,1780380639000,-546.21439912,0.00013698,2]
[423747745,1780380639000,-500.0,0.00013698,2]
[423747737,1780380639000,-500.0,0.00013698,2]
[423747736,1780380639000,-500.0,0.00013698,2]
[423747740,1780380639000,-502.96550498,0.00013698,2]
[423747729,1780380639000,-500.0,0.00013698,2]
[423747728,1780380639000,-502.4725039,0.00013698,2]
[423747738,1780380639000,-500.0,0.00013698,2]
[423747744,1780380639000,-500.0,0.00013698,2]
[423747753,1780380639000,-500.0,0.00013698,2]
[423747751,1780380639000,-500.0,0.00013698,2]
[423747748,1780380639000,-500.0,0.00013698,2]
[423747752,1780380639000,-500.0,0.00013698,2]
[423747747,1780380639000,-500.0,0.00013698,2]
[423747750,1780380639000,-500.0,0.00013698,2]
[423747749,1780380639000,-500.0,0.00013698,2]
[423747756,1780380639000,-473.47149872,0.00013698,2]
[423747754,1780380639000,-500.0,0.00013698,2]
[423747755,1780380639000,-500.0,0.00013698,2]
[423747758,1780380639000,-500.0,0.00013698,2]
[423747769,1780380639000,-505.03278869,0.00013698,2]
[423747760,1780380639000,-283.01102206,0.00013698,2]
[423747768,1780380639000,-501.47625976,0.00013698,2]
[423747730,1780380639000,-500.0,0.00013698,2]
[423747746,1780380639000,-500.0,0.00013698,2]
[423747726,1780380639000,-553.68,0.00013698,2]
[423747711,1780380639000,-500.0,0.00013698,2]
[423747731,1780380639000,-500.0,0.00013698,2]
[423747759,1780380639000,-500.0,0.00013698,2]
[423747706,1780380639000,-500.0,0.00013698,2]
[423747705,1780380639000,-500.0,0.00013698,2]
[423747701,1780380639000,-500.0,0.00013698,2]
[423747699,1780380639000,-500.0,0.00013698,2]
[423747700,1780380639000,-515.38507873,0.00013698,2]
[423747704,1780380639000,-500.0,0.00013698,2]
[423747702,1780380639000,-500.0,0.00013698,2]
[423747703,1780380639000,-500.0,0.00013698,2]
[423747707,1780380639000,-502.01490386,0.00013698,2]
[423747708,1780380639000,-416.81890381,0.00013698,2]
[423747709,1780380639000,-311.91411296,0.00013698,2]
[423747718,1780380639000,-500.0,0.00013698,2]
[423747710,1780380639000,-500.0,0.00013698,2]
[423747713,1780380639000,-500.0,0.00013698,2]
[423747719,1780380639000,-500.0,0.00013698,2]
[423747714,1780380639000,-500.0,0.00013698,2]
[423747717,1780380639000,-500.0,0.00013698,2]
[423747715,1780380639000,-240.04072389,0.00013698,2]
[423747720,1780380639000,-500.0,0.00013698,2]
[423747712,1780380639000,-500.0,0.00013698,2]
[423747716,1780380639000,-500.0,0.00013698,2]
[423747721,1780380639000,-500.0,0.00013698,2]
[423747722,1780380639000,-500.0,0.00013698,2]
[423747723,1780380639000,-500.0,0.00013698,2]
[423747733,1780380639000,-500.0,0.00013698,2]
[423747724,1780380639000,-500.0,0.00013698,2]
[423747732,1780380639000,-500.0,0.00013698,2]
[423747727,1780380639000,-500.0,0.00013698,2]
[423747725,1780380639000,-500.0,0.00013698,2]
[423747763,1780380639000,-510.06572744,0.00013698,2]
[423747813,1780380639000,-501.59338635,0.00013698,2]
[423747762,1780380639000,-500.0,0.00013698,2]
[423747802,1780380639000,-500.0,0.00013698,2]
[423747801,1780380639000,-501.47177187,0.00013698,2]
[423747803,1780380639000,-500.0,0.00013698,2]
[423747812,1780380639000,-500.0,0.00013698,2]
[423747810,1780380639000,-500.0,0.00013698,2]
[423747811,1780380639000,-500.0,0.00013698,2]
[423747806,1780380639000,-500.0,0.00013698,2]
[423747808,1780380639000,-500.0,0.00013698,2]
[423747805,1780380639000,-500.0,0.00013698,2]
[423747807,1780380639000,-500.0,0.00013698,2]
[423747804,1780380639000,-500.0,0.00013698,2]
[423747809,1780380639000,-500.0,0.00013698,2]
[423747815,1780380639000,-500.0,0.00013698,2]
[423747826,1780380639000,-500.0,0.00013698,2]
[423747825,1780380639000,-500.0,0.00013698,2]
[423747827,1780380639000,-500.0,0.00013698,2]
[423747814,1780380639000,-500.0,0.00013698,2]
[423747828,1780380639000,-500.0,0.00013698,2]
[423747817,1780380639000,-487.52699601,0.00013698,2]
[423747820,1780380639000,-500.0,0.00013698,2]
[423747819,1780380639000,-500.0,0.00013698,2]
[423747822,1780380639000,-500.0,0.00013698,2]
[423747824,1780380639000,-500.0,0.00013698,2]
[423747761,1780380639000,-502.05189052,0.00013698,2]
[423747821,1780380639000,-501.84417495,0.00013698,2]
[423747830,1780380639000,-500.0,0.00013698,2]
[423747829,1780380639000,-282.79822997,0.00013698,2]
[423747831,1780380639000,-500.0,0.00013698,2]
[423747832,1780380639000,-500.0,0.00013698,2]
[423747800,1780380639000,-319.24925775,0.00013698,2]
[423747799,1780380639000,-500.0,0.00013698,2]
[423747823,1780380639000,-500.0,0.00013698,2]
[423747794,1780380639000,-500.0,0.00013698,2]
[423747798,1780380639000,-501.57368334,0.00013698,2]
[423747757,1780380639000,-502.06201031,0.00013698,2]
[423747767,1780380639000,-500.0,0.00013698,2]
[423747765,1780380639000,-500.0,0.00013698,2]
[423747766,1780380639000,-500.0,0.00013698,2]
[423747771,1780380639000,-500.0,0.00013698,2]
[423747770,1780380639000,-500.0,0.00013698,2]
[423747783,1780380639000,-500.0,0.00013698,2]
[423747772,1780380639000,-500.0,0.00013698,2]
[423747781,1780380639000,-500.0,0.00013698,2]
[423747782,1780380639000,-500.0,0.00013698,2]
[423747774,1780380639000,-500.0,0.00013698,2]
[423747775,1780380639000,-500.0,0.00013698,2]
[423747776,1780380639000,-500.0,0.00013698,2]
[423747764,1780380639000,-500.0,0.00013698,2]
[423747773,1780380639000,-500.0,0.00013698,2]
[423747777,1780380639000,-500.0,0.00013698,2]
[423747792,1780380639000,-500.0,0.00013698,2]
[423747788,1780380639000,-500.0,0.00013698,2]
[423747793,1780380639000,-500.0,0.00013698,2]
[423747797,1780380639000,-500.0,0.00013698,2]
[423747791,1780380639000,-500.0,0.00013698,2]
[423747795,1780380639000,-500.0,0.00013698,2]
[423747790,1780380639000,-605.94555686,0.00013698,2]
[423747787,1780380639000,-500.0,0.00013698,2]
[423747785,1780380639000,-500.0,0.00013698,2]
[423747780,1780380639000,-500.0,0.00013698,2]
[423747778,1780380639000,-500.0,0.00013698,2]
[423747796,1780380639000,-500.0,0.00013698,2]
[423747779,1780380639000,-500.0,0.00013698,2]
[423747872,1780380640000,-500.0,0.00013698,2]
[423747870,1780380640000,-500.0,0.00013698,2]
[423747866,1780380640000,-500.0,0.00013698,2]
[423747865,1780380640000,-500.0,0.00013698,2]
[423747864,1780380640000,-501.59754139,0.00013698,2]
[423747867,1780380640000,-511.04414852,0.00013698,2]
[423747863,1780380640000,-500.0,0.00013698,2]
[423747862,1780380640000,-500.0,0.00013698,2]
[423747858,1780380640000,-500.0,0.00013698,2]
[423747868,1780380640000,-500.0,0.00013698,2]
[423747883,1780380640000,-500.0,0.00013698,2]
[423747881,1780380640000,-500.0,0.00013698,2]
[423747887,1780380640000,-501.29691916,0.00013698,2]
[423747890,1780380640000,-257.23241976,0.00013698,2]
[423747889,1780380640000,-500.0,0.00013698,2]
[423747874,1780380640000,-500.0,0.00013698,2]
[423747877,1780380640000,-501.22542768,0.00013698,2]
[423747875,1780380640000,-500.78618941,0.00013698,2]
[423747879,1780380640000,-500.0,0.00013698,2]
[423747893,1780380640000,-500.0,0.00013698,2]
[423747892,1780380640000,-466.88221097,0.00013698,2]
[423747861,1780380640000,-514.64221039,0.00013698,2]
[423747885,1780380640000,-500.0,0.00013698,2]
[423747860,1780380640000,-830.82,0.00013698,2]
[423747844,1780380640000,-500.0,0.00013698,2]
[423747856,1780380640000,-500.0,0.00013698,2]
[423747841,1780380640000,-500.0,0.00013698,2]
[423747842,1780380640000,-500.0,0.00013698,2]
[423747833,1780380640000,-501.30723879,0.00013698,2]
[423747834,1780380640000,-500.0,0.00013698,2]
[423747840,1780380640000,-500.72884122,0.00013698,2]
[423747836,1780380640000,-500.0,0.00013698,2]
[423747838,1780380640000,-500.0,0.00013698,2]
[423747837,1780380640000,-500.0,0.00013698,2]
[423747835,1780380640000,-500.0,0.00013698,2]
[423747839,1780380640000,-500.0,0.00013698,2]
[423747843,1780380640000,-512.91,0.00013698,2]
[423747896,1780380640000,-504.04499019,0.00013698,2]
[423747849,1780380640000,-500.0,0.00013698,2]
[423747846,1780380640000,-500.0,0.00013698,2]
[423747845,1780380640000,-500.0,0.00013698,2]
[423747847,1780380640000,-437.37023566,0.00013698,2]
[423747851,1780380640000,-500.0,0.00013698,2]
[423747850,1780380640000,-500.0,0.00013698,2]
[423747852,1780380640000,-500.0,0.00013698,2]
[423747853,1780380640000,-500.0,0.00013698,2]
[423747854,1780380640000,-500.0,0.00013698,2]
[423747855,1780380640000,-500.61180022,0.00013698,2]
[423747857,1780380640000,-500.0,0.00013698,2]
[423747859,1780380640000,-326.28454931,0.00013698,2]
[423747895,1780380640000,-500.0,0.00013698,2]
[423747848,1780380640000,-500.0,0.00013698,2]
[423747902,1780380640000,-503.46158659,0.00013698,2]
[423747908,1780380640000,-500.0,0.00013698,2]
[423747916,1780380640000,-502.63910087,0.00013698,2]
[423747913,1780380640000,-500.0,0.00013698,2]
[423747923,1780380640000,-500.90004001,0.00013698,2]
[423747927,1780380640000,-500.0,0.00013698,2]
[423747920,1780380640000,-500.0,0.00013698,2]
[423747921,1780380640000,-500.0,0.00013698,2]
[423747943,1780380640000,-500.0,0.00013698,2]
[423747932,1780380640000,-500.0,0.00013698,2]
[423747933,1780380640000,-500.0,0.00013698,2]
[423747944,1780380640000,-502.61312265,0.00013698,2]
[423747942,1780380640000,-500.0,0.00013698,2]
[423747935,1780380640000,-500.0,0.00013698,2]
[423747939,1780380640000,-502.43841813,0.00013698,2]
[423747940,1780380640000,-500.0,0.00013698,2]
[423747937,1780380640000,-500.0,0.00013698,2]
[423747941,1780380640000,-500.0,0.00013698,2]
[423747934,1780380640000,-580.36742542,0.00013698,2]
[423747938,1780380640000,-500.0,0.00013698,2]
[423747946,1780380640000,-500.0,0.00013698,2]
[423747945,1780380640000,-501.61889752,0.00013698,2]
[423747947,1780380640000,-528.11072221,0.00013698,2]
[423747894,1780380640000,-500.0,0.00013698,2]
[423747907,1780380640000,-500.0,0.00013698,2]
[423747911,1780380640000,-327.66837724,0.00013698,2]
[423747936,1780380640000,-500.0,0.00013698,2]
[423747914,1780380640000,-500.0,0.00013698,2]
[423747926,1780380640000,-227.12901996,0.00013698,2]
[423747903,1780380640000,-500.0,0.00013698,2]
[423747901,1780380640000,-343.63249335,0.00013698,2]
[423747904,1780380640000,-500.0,0.00013698,2]
[423747900,1780380640000,-500.0,0.00013698,2]
[423747899,1780380640000,-500.0,0.00013698,2]
[423747898,1780380640000,-500.0,0.00013698,2]
[423747912,1780380640000,-502.87401138,0.00013698,2]
[423747919,1780380640000,-500.0,0.00013698,2]
[423747915,1780380640000,-174.25345502,0.00013698,2]
[423747930,1780380640000,-500.0,0.00013698,2]
[423747897,1780380640000,-500.0,0.00013698,2]
[423747929,1780380640000,-500.0,0.00013698,2]
[423747905,1780380640000,-500.0,0.00013698,2]
[423747918,1780380640000,-500.0,0.00013698,2]
[423747924,1780380640000,-500.0,0.00013698,2]
[423747909,1780380640000,-500.0,0.00013698,2]
[423747931,1780380640000,-500.0,0.00013698,2]
[423747925,1780380640000,-500.0,0.00013698,2]
[423747906,1780380640000,-500.0,0.00013698,2]
[423747922,1780380640000,-500.0,0.00013698,2]
[423747917,1780380640000,-501.75852229,0.00013698,2]
[423747910,1780380640000,-500.0,0.00013698,2]
[423747928,1780380640000,-500.0,0.00013698,2]
[423747986,1780380641000,-500.0,0.00013972,2]
[423747979,1780380641000,-500.0,0.00013972,2]
[423747987,1780380641000,-500.0,0.00013972,2]
[423747990,1780380641000,-500.0,0.00013972,2]
[423747991,1780380641000,-500.0,0.00013972,2]
[423747988,1780380641000,-500.0,0.00013972,2]
[423747981,1780380641000,-500.0,0.00013972,2]
[423747995,1780380641000,-500.0,0.00013972,2]
[423747996,1780380641000,-500.0,0.00013972,2]
[423747985,1780380641000,-500.0,0.00013972,2]
[423747977,1780380641000,-193.76517908,0.00013972,2]
[423747993,1780380641000,-500.0,0.00013972,2]
[423747984,1780380641000,-505.36549796,0.00013972,2]
[423747992,1780380641000,-500.0,0.00013972,2]
[423748004,1780380641000,-540.69168679,0.00013972,2]
[423747989,1780380641000,-504.03995527,0.00013972,2]
[423747998,1780380641000,-508.19134287,0.00013972,2]
[423747997,1780380641000,-507.22128419,0.00013972,2]
[423748000,1780380641000,-473.84930715,0.00013972,2]
[423747999,1780380641000,-500.0,0.00013972,2]
[423748008,1780380641000,-501.84103967,0.00013972,2]
[423748002,1780380641000,-553.68,0.00013972,2]
[423748001,1780380641000,-508.6344774,0.00013972,2]
[423748003,1780380641000,-501.85230267,0.00013972,2]
[423748007,1780380641000,-442.25505565,0.00013972,2]
[423748005,1780380641000,-420.87187676,0.00013972,2]
[423748010,1780380641000,-500.0,0.00013972,2]
[423747980,1780380641000,-500.0,0.00013972,2]
[423747994,1780380641000,-504.5658476,0.00013972,2]
[423747972,1780380641000,-2935.52,0.00013972,2]
[423747949,1780380641000,-500.0,0.00013698,2]
[423747976,1780380641000,-500.0,0.00013972,2]
[423747957,1780380641000,-500.0,0.00013698,2]
[423747956,1780380641000,-500.0,0.00013698,2]
[423747958,1780380641000,-500.0,0.00013698,2]
[423747951,1780380641000,-500.0,0.00013698,2]
[423747948,1780380641000,-500.0,0.00013698,2]
[423748020,1780380641000,-505.08555664,0.00013972,2]
[423747952,1780380641000,-503.03580858,0.00013698,2]
[423747950,1780380641000,-500.0,0.00013698,2]
[423747953,1780380641000,-500.0,0.00013698,2]
[423747955,1780380641000,-639.34,0.00013698,2]
[423747954,1780380641000,-2813.11,0.00013698,2]
[423747968,1780380641000,-505.91411658,0.00013972,2]
[423747959,1780380641000,-500.0,0.00013698,2]
[423747964,1780380641000,-151.0,0.000137,2]
[423747963,1780380641000,-151.0,0.000137,2]
[423747961,1780380641000,-724.61,0.00013698,2]